fUSD/lending_fUSD_20260129
["ID","MTS","AMOUNT","RATE_DAILY","PERIOD"]
[403954551,1769691033399,-6645.52,0.00013867,2]
[403954552,1769691033409,-185.35,0.00013988,2]
[403954553,1769691033419,-12798.18,0.00014002,2]
[403954554,1769691033429,-166.66,0.00014072,2]
[403954555,1769691033439,-500.0,0.0001413,2]
[403954556,1769691033448,-2252.6,0.0001413,2]
[403954557,1769691033458,-59869.08143918,0.00014217,2]
[403954558,1769691033467,-500.0,0.00014244,2]
[403954559,1769691033476,-500.0,0.00014244,2]
[403954560,1769691033486,-500.0,0.00014244,2]
[403954561,1769691033496,-500.0,0.00014244,2]
[403954562,1769691033505,-500.0,0.00014244,2]
[403954563,1769691033515,-500.0,0.00014244,2]
[403954564,1769691033524,-151.0,0.00014244,2]
[403954565,1769691033533,-500.0,0.00014244,2]
[403954566,1769691033542,-151.0,0.00014244,2]
[403954567,1769691033551,-200.0,0.00014244,2]
[403954568,1769691033560,-500.0,0.00014244,2]
[403954569,1769691033569,-151.0,0.00014244,2]
[403954570,1769691033578,-500.0,0.00014244,2]
[403954571,1769691033587,-151.0,0.00014244,2]
[403954572,1769691033596,-500.0,0.00014244,2]
[403954573,1769691033605,-151.0,0.00014244,2]
[403954574,1769691033614,-500.0,0.00014244,2]
[403954575,1769691033623,-151.0,0.00014244,2]
[403954576,1769691033632,-500.0,0.00014244,2]
[403954577,1769691033642,-500.0,0.00014244,2]
[403954578,1769691033651,-151.0,0.00014244,2]
[403954579,1769691033660,-500.0,0.00014244,2]
[403954580,1769691033669,-151.0,0.00014244,2]
[403954581,1769691033678,-500.0,0.00014244,2]
[403954582,1769691033687,-151.0,0.00014244,2]
[403954583,1769691033696,-500.0,0.00014244,2]
[403954584,1769691033706,-151.0,0.00014244,2]
[403954585,1769691033715,-500.0,0.00014244,2]
[403954586,1769691033726,-151.0,0.00014244,2]
[403954587,1769691033737,-500.0,0.00014244,2]
[403954588,1769691033747,-151.0,0.00014244,2]
[403954589,1769691033756,-500.0,0.00014244,2]
[403954590,1769691033765,-151.0,0.00014244,2]
[403954591,1769691033775,-500.0,0.00014244,2]
[403954592,1769691033784,-151.0,0.00014244,2]
[403954593,1769691033793,-500.0,0.00014244,2]
[403954594,1769691033803,-151.0,0.00014244,2]
[403954595,1769691033812,-500.0,0.00014244,2]
[403954596,1769691033822,-151.0,0.00014244,2]
[403954597,1769691033831,-500.0,0.00014244,2]
[403954598,1769691033841,-151.0,0.00014244,2]
[403954599,1769691033850,-151.0,0.00014244,2]
[403954600,1769691033860,-153.98079146,0.00014244,2]
[403954601,1769691033869,-200.0,0.00014244,2]
[403954602,1769691033878,-151.0,0.00014244,2]
[403954603,1769691033888,-151.0,0.00014244,2]
[403954604,1769691033898,-151.0,0.00014244,2]
[403954605,1769691033907,-151.0,0.00014244,2]
[403954606,1769691033916,-151.0,0.00014244,2]
[403954607,1769691033925,-151.0,0.00014244,2]
[403954608,1769691033935,-151.0,0.00014244,2]
[403954609,1769691033944,-151.0,0.00014244,2]
[403954610,1769691033954,-151.0,0.00014244,2]
[403954611,1769691033964,-151.0,0.00014244,2]
[403954612,1769691033973,-151.0,0.00014244,2]
[403954613,1769691033984,-14776.18,0.00014253,2]
[403954614,1769691033994,-166.66,0.00014345,2]
[403954615,1769691034005,-500.0,0.00014404,2]
[403954616,1769691034014,-2252.6,0.00014404,2]
[403954617,1769691034024,-150.09204547,0.00014486,2]
[403954618,1769691034034,-1186.0,0.00014545,2]
[403954619,1769691034043,-308.0088,0.00014547,2]
[403954620,1769691034052,-1680.0,0.00014574,2]
[403954621,1769691034061,-459.81,0.000146,2]
[403954622,1769691034071,-1464.0,0.00014603,2]
[403954623,1769691034080,-623.0,0.00014632,2]
[403954624,1769691034089,-7969.82,0.00014647,2]
[403954625,1769691034099,-390.0,0.00014661,2]
[403954626,1769691034108,-53472.366488,0.00014678,2]
[403954627,1769691034152,-6396.71495118,0.00014678,2]
[403954628,1769691034162,-500.0,0.00014678,2]
[403954629,1769691034171,-2252.6,0.00014678,2]
[403954630,1769691034180,-1197.0,0.0001469,2]
[403954631,1769691034190,-947.0,0.00014719,2]
[403954632,1769691034199,-185.35,0.00014724,2]
[403954633,1769691034209,-200.0,0.00014733,2]
[403954634,1769691034218,-500.0,0.00014792,2]
[403954635,1769691034228,-200.0,0.00014792,2]
[403954636,1769691034238,-200.0,0.00014792,2]
[403954637,1769691034248,-434.71,0.00014796,2]
[403954638,1769691034257,-151.0,0.00014829,2]
[403954639,1769691034266,-151.0,0.00014835,2]
[403954640,1769691034276,-151.0,0.00014841,2]
[403954641,1769691034285,-151.0,0.00014841,2]
[403954642,1769691034295,-234.53,0.00014841,2]
[403954643,1769691034305,-500.0,0.00014854,2]
[403954644,1769691034314,-500.0,0.00014854,2]
[403954645,1769691034324,-500.0,0.00014854,2]
[403954646,1769691034333,-500.54,0.00014854,2]
[403954647,1769691034343,-245.22730188,0.00014854,2]
[403954648,1769691034353,-261.76,0.00014855,2]
[403954649,1769691034364,-152.71796878,0.00014856,2]
[403954650,1769691034373,-368.14,0.00014856,2]
[403954651,1769691034383,-536.09796085,0.00014856,2]
[403954652,1769691034392,-500.0,0.00014856,2]
[403954653,1769691034402,-500.0,0.00014856,2]
[403954654,1769691034411,-369.45581214,0.00014856,2]
[403954655,1769691034420,-500.0,0.00014856,2]
[403954656,1769691034431,-500.0,0.00014856,2]
[403954657,1769691034441,-500.0,0.00014856,2]
[403954658,1769691034450,-482.84677655,0.00014856,2]
[403954659,1769691034459,-500.0,0.00014856,2]
[403954660,1769691034469,-500.0,0.00014856,2]
[403954661,1769691034477,-400.0,0.00014856,2]
[403954662,1769691034486,-151.0,0.00014856,2]
[403954663,1769691034497,-24643.59201854,0.0001495,2]
[403954664,1769691034511,-33582.12167699,0.0001495,2]
[403954665,1769691034522,-46707.98674197,0.0001495,2]
[403954666,1769691034534,-1254.41808677,0.0001495,2]
[403954667,1769691034568,-3355.32342511,0.0001495,2]
[403954668,1769691034579,-832.33893487,0.0001495,2]
[403954669,1769691034592,-495.74682973,0.0001495,2]
[403954670,1769691034622,-941.85870651,0.0001495,2]
[403954671,1769691034633,-2985.65008553,0.0001495,2]
[403954672,1769691034656,-871.0,0.0001495,2]
[403954673,1769691034667,-269.45556179,0.0001495,2]
[403954674,1769691034676,-500.0,0.00014952,2]
[403954675,1769691034684,-395.12004705,0.00014952,2]
[403954676,1769691034696,-511.86844531,0.00014952,2]
[403954680,1769691038057,-1345.61150764,0.00014952,2]
[403954681,1769691038068,-395.0,0.00014957,2]
[403954682,1769691038079,-7874.30407594,0.00014977,2]
[403954683,1769691038090,-179.8228,0.00014977,2]
[403954684,1769691038101,-3958.3225,0.00014977,2]
[403954685,1769691038112,-1000.0,0.00014977,2]
[403954686,1769691038123,-677.5345,0.00014977,2]
[403954687,1769691038135,-255.0,0.00014977,2]
[403954688,1769691038146,-203.0,0.00014987,2]
[403954689,1769691038157,-500.0,0.00014995,2]
[403954690,1769691038167,-500.0,0.00014995,2]
[403954691,1769691038178,-500.0,0.00014995,2]
[403954692,1769691038189,-500.54,0.00014995,2]
[403954693,1769691038199,-1000.0,0.00014999,2]
[403954694,1769691038209,-174.0,0.00015007,2]
[403954695,1769691038219,-4385.73705089,0.00015016,2]
[403954696,1769691038230,-10183.00650514,0.00015016,2]
[403954697,1769691038240,-326.0,0.0001504,2]
[403954698,1769691038251,-1228.0,0.00015041,2]
[403954699,1769691038261,-2829.34897608,0.00015067,2]
[403954700,1769691038271,-151.0,0.00015074,2]
[403954701,1769691038282,-151.0,0.00015074,2]
[403954702,1769691038292,-500.0,0.00015076,2]
[403954703,1769691038303,-548.75558421,0.00015076,2]
[403954704,1769691038313,-500.0,0.00015076,2]
[403954705,1769691038324,-500.0,0.00015076,2]
[403954706,1769691038335,-500.0,0.00015076,2]
[403954708,1769691038345,-292.00606776,0.00015076,2]
[403954710,1769691038358,-500.0,0.00015076,2]
[403954712,1769691038368,-500.0,0.00015076,2]
[403954714,1769691038378,-500.0,0.00015076,2]
[403954716,1769691038389,-500.0,0.00015076,2]
[403954718,1769691038400,-500.0,0.00015076,2]
[403954720,1769691038411,-500.0,0.00015076,2]
[403954723,1769691038421,-500.0,0.00015076,2]
[403954725,1769691038433,-500.0,0.00015076,2]
[403954727,1769691038443,-500.0,0.00015076,2]
[403954729,1769691038453,-500.0,0.00015076,2]
[403954731,1769691038464,-500.0,0.00015076,2]
[403954733,1769691038475,-500.0,0.00015076,2]
[403954735,1769691038485,-500.0,0.00015076,2]
[403954737,1769691038495,-500.0,0.00015076,2]
[403954739,1769691038506,-500.0,0.00015076,2]
[403954741,1769691038516,-500.0,0.00015076,2]
[403954743,1769691038527,-539.72763655,0.00015076,2]
[403954745,1769691038537,-500.0,0.00015076,2]
[403954748,1769691038548,-500.0,0.00015076,2]
[403954836,1769691039511,-237.25702033,0.00015076,2]
[403954837,1769691039536,-500.0,0.00015076,2]
[403954838,1769691039557,-502.28343568,0.00015076,2]
[403954840,1769691039586,-500.0,0.00015076,2]
[403954844,1769691039612,-500.0,0.00015076,2]
[403954846,1769691039623,-414.71781927,0.00015076,2]
[403954848,1769691039633,-500.0,0.00015076,2]
[403954850,1769691039641,-500.0,0.00015076,2]
[403954852,1769691039650,-500.0,0.00015076,2]
[403954854,1769691039659,-500.0,0.00015076,2]
[403954856,1769691039668,-500.0,0.00015076,2]
[403954858,1769691039677,-500.0,0.00015076,2]
[403954860,1769691039686,-500.0,0.00015076,2]
[403954862,1769691039695,-1259.68730294,0.00015076,2]
[403954864,1769691039704,-500.54,0.00015076,2]
[403954866,1769691039713,-500.54,0.00015076,2]
[403954868,1769691039722,-500.54,0.00015076,2]
[403954870,1769691039731,-500.54,0.00015076,2]
[403954872,1769691039740,-500.54,0.00015076,2]
[403954874,1769691039749,-500.54,0.00015076,2]
[403954876,1769691039758,-500.54,0.00015076,2]
[403954878,1769691039768,-150.0,0.00015076,2]
[403954880,1769691039777,-150.0,0.00015076,2]
[403954882,1769691039786,-774.0096884,0.00015076,2]
[403954883,1769691039795,-500.0,0.00015076,2]
[403954885,1769691039804,-580.66574664,0.00015076,2]
[403954887,1769691039813,-500.0,0.00015076,2]
[403954889,1769691039822,-500.0,0.00015076,2]
[403954891,1769691039831,-500.0,0.00015076,2]
[403954892,1769691039840,-500.0,0.00015076,2]
[403954894,1769691039849,-500.0,0.00015076,2]
[403954896,1769691039859,-500.0,0.00015076,2]
[403954898,1769691039869,-500.0,0.00015076,2]
[403954900,1769691039878,-500.0,0.00015076,2]
[403954902,1769691039887,-500.0,0.00015076,2]
[403954904,1769691039896,-500.0,0.00015076,2]
[403954906,1769691039905,-500.0,0.00015076,2]
[403954907,1769691039915,-500.0,0.00015076,2]
[403954909,1769691039924,-500.0,0.00015076,2]
[403954911,1769691039934,-500.0,0.00015076,2]
[403954913,1769691039943,-569.24617765,0.00015076,2]
[403954914,1769691039952,-59869.08143918,0.00015138,2]
[403954915,1769691039962,-193.0,0.00015175,2]
[403954916,1769691039971,-250.0,0.00015175,2]
[403954917,1769691039980,-600.0,0.00015175,2]
[403954918,1769691039989,-291.41973168,0.00015175,2]
[403954919,1769691039999,-300.0,0.00015176,2]
[403954920,1769691040008,-195.0,0.00015176,2]
[403954921,1769691040018,-195.0,0.00015176,2]
[403954922,1769691040028,-250.0,0.00015176,2]
[403954924,1769691040037,-2500.0,0.00015176,2]
[403954926,1769691040047,-1228.03820374,0.00015176,2]
[403954928,1769691040056,-600.0,0.00015176,2]
[403954930,1769691040066,-500.0,0.00015176,2]
[403954932,1769691040075,-2500.0,0.00015176,2]
[403954934,1769691040084,-5000.0,0.00015176,2]
[403954936,1769691040093,-300.0,0.00015176,2]
[403954938,1769691040106,-600.0,0.00015176,2]
[403954940,1769691040125,-195.0,0.00015176,2]
[403954942,1769691040137,-500.0,0.00015176,2]
[403954943,1769691040147,-250.0,0.00015176,2]
[403954944,1769691040156,-1802.62498389,0.00015176,2]
[403954945,1769691040166,-300.0,0.00015176,2]
[403954946,1769691040175,-600.0,0.00015176,2]
[403954947,1769691040185,-195.0,0.00015176,2]
[403954948,1769691040194,-420.0,0.0001518,2]
[403954949,1769691040203,-300.0,0.0001518,2]
[403954950,1769691040213,-420.0,0.00015181,2]
[403954951,1769691040222,-500.0,0.00015194,2]
[403954952,1769691040231,-500.54,0.00015194,2]
[403954953,1769691040240,-500.0,0.00015226,2]
[403954954,1769691040249,-2252.6,0.00015226,2]
[403954955,1769691040258,-1680.0,0.00015241,2]
[403954956,1769691040267,-377.0,0.00015257,2]
[403954957,1769691040276,-500.0,0.0001534,2]
[403954958,1769691040285,-327.89696696,0.0001534,2]
[403954959,1769691040294,-200.0,0.0001534,2]
[403954960,1769691040303,-216.93470814,0.000154,2]
[403954961,1769691040312,-335.0,0.00015449,2]
[403954962,1769691040321,-185.35,0.00015461,2]
[403954963,1769691040330,-1334.0,0.0001548,2]
[403954964,1769691040339,-500.0,0.000155,2]
[403954965,1769691040349,-2252.6,0.000155,2]
[403954966,1769691040362,-150.0,0.00015577,2]
[403954967,1769691040372,-150.0,0.00015577,2]
[403954968,1769691040381,-4385.73705089,0.00015593,2]
[403954969,1769691040390,-201.378,0.00015598,2]
[403954970,1769691040401,-59869.08143918,0.00015598,2]
[403954971,1769691040411,-169.71523397,0.00015599,2]
[403954972,1769691040420,-500.0,0.00015599,2]
[403954973,1769691040429,-500.0,0.00015599,2]
[403954974,1769691040438,-500.0,0.00015599,2]
[403954975,1769691040447,-500.0,0.00015599,2]
[403954976,1769691040457,-572.92100435,0.00015599,2]
[403954977,1769691040470,-500.0,0.00015599,2]
[403954978,1769691040479,-500.0,0.00015599,2]
[403954979,1769691040488,-500.0,0.00015599,2]
[403954980,1769691040498,-514.83889524,0.00015599,2]
[403954981,1769691040508,-500.0,0.00015599,2]
[403954982,1769691040518,-500.0,0.00015599,2]
[403954983,1769691040527,-500.0,0.00015599,2]
[403954984,1769691040536,-500.0,0.00015599,2]
[403954985,1769691040546,-542.58663084,0.00015599,2]
[403954986,1769691040555,-672.81,0.00015599,2]
[403954987,1769691040564,-672.81,0.00015599,2]
[403954988,1769691040573,-672.81,0.00015599,2]
[403954989,1769691040582,-672.81,0.00015599,2]
[403954990,1769691040593,-672.81,0.00015599,2]
[403954991,1769691040602,-672.81,0.00015599,2]
[403954993,1769691040611,-672.81,0.00015599,2]
[403954994,1769691040621,-500.0,0.00015599,2]
[403954996,1769691040631,-500.0,0.00015599,2]
[403954998,1769691040640,-500.0,0.00015599,2]
[403955000,1769691040650,-500.0,0.00015599,2]
[403955002,1769691040659,-345.84331997,0.00015599,2]
[403955004,1769691040669,-500.0,0.00015599,2]
[403955005,1769691040678,-500.0,0.00015599,2]
[403955006,1769691040687,-500.0,0.00015599,2]
[403955007,1769691040696,-500.0,0.00015599,2]
[403955008,1769691040705,-500.0,0.00015599,2]
[403955009,1769691040714,-500.0,0.00015599,2]
[403955010,1769691040723,-500.0,0.00015599,2]
[403955011,1769691040732,-500.0,0.00015599,2]
[403955012,1769691040742,-500.0,0.00015599,2]
[403955013,1769691040751,-500.0,0.00015599,2]
[403955014,1769691040760,-500.0,0.00015599,2]
[403955015,1769691040771,-500.0,0.00015599,2]
[403955016,1769691040780,-500.0,0.00015599,2]
[403955017,1769691040789,-500.0,0.00015599,2]
[403955018,1769691040798,-500.0,0.00015599,2]
[403955019,1769691040807,-500.0,0.00015599,2]
[403955020,1769691040817,-161.45556103,0.00015599,2]
[403955021,1769691040826,-1082.12,0.00015599,2]
[403955022,1769691040839,-1082.12,0.00015599,2]
[403955023,1769691040848,-1082.12,0.00015599,2]
[403955024,1769691040858,-1082.12,0.00015599,2]
[403955025,1769691040868,-1082.12,0.00015599,2]
[403955026,1769691040877,-1082.12,0.00015599,2]
[403955027,1769691040887,-1082.12,0.00015599,2]
[403955028,1769691040896,-500.0,0.00015599,2]
[403955029,1769691040906,-500.0,0.00015599,2]
[403955030,1769691040915,-500.0,0.00015599,2]
[403955031,1769691040925,-500.0,0.00015599,2]
[403955032,1769691040935,-500.0,0.00015599,2]
[403955033,1769691040944,-326.5559361,0.00015599,2]
[403955034,1769691040954,-500.0,0.00015599,2]
[403955035,1769691040964,-500.0,0.00015599,2]
[403955036,1769691040973,-500.0,0.00015599,2]
[403955037,1769691040982,-500.0,0.00015599,2]
[403955038,1769691040992,-500.0,0.00015599,2]
[403955039,1769691041001,-500.0,0.00015599,2]
[403955040,1769691041011,-500.0,0.00015599,2]
[403955041,1769691041020,-500.0,0.00015599,2]
[403955042,1769691041029,-500.0,0.00015599,2]
[403955043,1769691041038,-500.0,0.00015599,2]
[403955044,1769691041047,-500.0,0.00015599,2]
[403955045,1769691041056,-500.0,0.00015599,2]
[403955046,1769691041065,-519.97392086,0.00015599,2]
[403955047,1769691041074,-500.0,0.00015599,2]
[403955048,1769691041083,-500.0,0.00015599,2]
[403955049,1769691041092,-500.0,0.00015599,2]
[403955050,1769691041102,-507.35345227,0.00015599,2]
[403955051,1769691041117,-500.0,0.00015599,2]
[403955052,1769691041126,-500.0,0.00015599,2]
[403955053,1769691041135,-500.0,0.00015599,2]
[403955054,1769691041144,-500.0,0.00015599,2]
[403955055,1769691041153,-500.0,0.00015599,2]
[403955056,1769691041163,-500.0,0.00015599,2]
[403955057,1769691041172,-500.0,0.00015599,2]
[403955058,1769691041181,-500.0,0.00015599,2]
[403955059,1769691041190,-500.0,0.00015599,2]
[403955060,1769691041200,-500.0,0.00015599,2]
[403955061,1769691041217,-500.0,0.00015599,2]
[403955062,1769691041226,-500.0,0.00015599,2]
[403955063,1769691041235,-500.0,0.00015599,2]
[403955064,1769691041243,-500.0,0.00015599,2]
[403955065,1769691041252,-500.0,0.00015599,2]
[403955066,1769691041261,-500.0,0.00015599,2]
[403955067,1769691041270,-500.0,0.00015599,2]
[403955068,1769691041280,-500.0,0.00015599,2]
[403955069,1769691041289,-500.0,0.00015599,2]
[403955070,1769691041298,-500.0,0.00015599,2]
[403955071,1769691041308,-500.0,0.00015599,2]
[403955072,1769691041317,-500.0,0.00015599,2]
[403955073,1769691041327,-500.0,0.00015641,2]
[403955074,1769691041336,-500.0,0.00015641,2]
[403955075,1769691041345,-500.0,0.00015641,2]
[403955076,1769691041358,-500.0,0.0001567,2]
[403955077,1769691041367,-500.54,0.0001567,2]
[403955078,1769691041378,-7113.0,0.00015671,2]
[403955079,1769691041387,-1101.0,0.00015705,2]
[403955080,1769691041398,-1342.0,0.00015737,2]
[403955081,1769691041407,-500.0,0.00015774,2]
[403955082,1769691041416,-2252.6,0.00015774,2]
[403955083,1769691041426,-1259.68730294,0.00015782,2]
[403955084,1769691041437,-672.81,0.00015799,2]
[403955085,1769691041447,-500.0,0.00015799,2]
[403955086,1769691041456,-500.0,0.00015799,2]
[403955087,1769691041465,-1082.12,0.00015799,2]
[403955088,1769691041475,-500.0,0.00015799,2]
[403955089,1769691041484,-500.0,0.00015799,2]
[403955090,1769691041494,-500.0,0.00015799,2]
[403955091,1769691041503,-500.0,0.00015799,2]
[403955092,1769691041513,-459.81,0.000158,2]
[403955093,1769691041522,-151.0,0.00015886,2]
[403955094,1769691041532,-500.0,0.00015888,2]
[403955095,1769691041541,-342.73505273,0.00015888,2]
[403955096,1769691041551,-500.0,0.00015889,2]
[403955097,1769691041560,-500.0,0.00015889,2]
[403955098,1769691041571,-270.35149328,0.00015889,2]
[403955099,1769691041580,-500.0,0.00015889,2]
[403955100,1769691041589,-500.0,0.00015889,2]
[403955101,1769691041599,-500.0,0.00015889,2]
[403955102,1769691041608,-500.0,0.00015889,2]
[403955103,1769691041618,-500.0,0.00015889,2]
[403955104,1769691041627,-637.29992174,0.00015889,2]
[403955105,1769691041636,-700.49,0.00015889,2]
[403955106,1769691041646,-700.49,0.00015889,2]
[403955107,1769691041655,-700.49,0.00015889,2]
[403955108,1769691041664,-700.49,0.00015889,2]
[403955109,1769691041673,-700.49,0.00015889,2]
[403955110,1769691041683,-700.49,0.00015889,2]
[403955111,1769691041692,-700.49,0.00015889,2]
[403955112,1769691041701,-22700.0,0.000159,5]
[403955113,1769691041710,-7630.05526868,0.0001596,2]
[403955114,1769691041719,-500.0,0.00015973,2]
[403955115,1769691041728,-500.0,0.00015973,2]
[403955116,1769691041738,-500.0,0.00015973,2]
[403955117,1769691041747,-500.0,0.00015973,2]
[403955118,1769691041761,-500.0,0.00015973,2]
[403955119,1769691041770,-500.0,0.00015973,2]
[403955120,1769691041780,-558.48764416,0.00015973,2]
[403955121,1769691041790,-500.0,0.00015973,2]
[403955122,1769691041799,-160.19813377,0.00015973,2]
[403955123,1769691041808,-500.0,0.00015973,2]
[403955124,1769691041818,-500.0,0.00015973,2]
[403955125,1769691041828,-500.0,0.00015973,2]
[403955126,1769691041837,-500.0,0.00015973,2]
[403955127,1769691041847,-425.5374197,0.00015973,2]
[403955128,1769691041856,-500.0,0.00015973,2]
[403955129,1769691041865,-500.0,0.00015973,2]
[403955130,1769691041874,-500.0,0.00015973,2]
[403955131,1769691041884,-500.0,0.00015973,2]
[403955132,1769691041893,-500.0,0.00015973,2]
[403955133,1769691041903,-500.0,0.00015973,2]
[403955134,1769691041912,-500.0,0.00015973,2]
[403955135,1769691041921,-500.0,0.00015973,2]
[403955136,1769691041930,-160.19589525,0.00015973,2]
[403955137,1769691041940,-160.30040686,0.00015973,2]
[403955138,1769691041949,-500.0,0.00015973,2]
[403955139,1769691041963,-500.56757167,0.00015973,2]
[403955140,1769691041972,-500.0,0.00015973,2]
[403955141,1769691041982,-166.19258147,0.00015973,2]
[403955142,1769691041991,-500.0,0.00015973,2]
[403955143,1769691042000,-500.0,0.00015973,2]
[403955144,1769691042009,-500.0,0.00015973,2]
[403955145,1769691042019,-500.0,0.00015973,2]
[403955146,1769691042028,-162.98402498,0.00015973,2]
[403955147,1769691042038,-500.76243557,0.00015973,2]
[403955148,1769691042047,-500.0,0.00015973,2]
[403955149,1769691042056,-500.0,0.00015973,2]
[403955150,1769691042065,-500.0,0.00015973,2]
[403955151,1769691042075,-500.0,0.00015973,2]
[403955152,1769691042084,-500.0,0.00015973,2]
[403955153,1769691042093,-501.08401626,0.00015973,2]
[403955154,1769691042102,-500.0,0.00015978,2]
[403955155,1769691042112,-500.0,0.00015978,2]
[403955156,1769691042122,-500.0,0.00015978,2]
[403955157,1769691042131,-150.0,0.00016031,2]
[403955158,1769691042140,-150.0,0.00016031,2]
[403955159,1769691042149,-700.49,0.00016033,2]
[403955160,1769691042159,-672.81,0.00016036,2]
[403955161,1769691042168,-500.0,0.00016036,2]
[403955162,1769691042178,-500.0,0.00016036,2]
[403955163,1769691042187,-1082.12,0.00016036,2]
[403955164,1769691042196,-500.0,0.00016036,2]
[403955165,1769691042206,-500.0,0.00016036,2]
[403955166,1769691042215,-500.0,0.00016036,2]
[403955167,1769691042224,-500.0,0.00016036,2]
[403955168,1769691042233,-500.0,0.00016048,2]
[403955169,1769691042242,-2252.6,0.00016048,2]
[403955170,1769691042251,-59869.08143918,0.00016059,2]
[403955171,1769691042260,-150.0,0.00016086,2]
[403955172,1769691042270,-9999.99,0.00016116,2]
[403955173,1769691042279,-200.0,0.00016141,2]
[403955174,1769691042288,-4385.73705089,0.0001617,2]
[403955175,1769691042298,-433.0,0.00016196,2]
[403955176,1769691042308,-185.35,0.00016197,2]
[403955177,1769691042317,-200.0,0.0001625,2]
[403955178,1769691042327,-5532.0,0.000163,5]
[403955179,1769691042337,-408.26320399,0.00016322,2]
[403955180,1769691042346,-2252.6,0.00016322,2]
[403955181,1769691042360,-500.0,0.00016384,2]
[403955182,1769691042369,-500.0,0.00016436,2]
[403955183,1769691042378,-500.0,0.00016437,2]
[403955184,1769691042387,-500.54,0.00016437,2]
[403955185,1769691042398,-500.0,0.00016438,2]
[403955186,1769691042407,-221.87673721,0.00016438,2]
[403955187,1769691042416,-665.99209402,0.00016438,2]
[403955188,1769691042425,-665.99209402,0.00016438,2]
[403955189,1769691042436,-665.99209402,0.00016438,2]
[403955190,1769691042445,-665.99209402,0.00016438,2]
[403955191,1769691042454,-665.99209402,0.00016438,2]
[403955192,1769691042463,-665.99209402,0.00016438,2]
[403955193,1769691042471,-665.99209402,0.00016438,2]
[403955194,1769691042480,-665.99209402,0.00016438,2]
[403955195,1769691042489,-665.99209402,0.00016438,2]
[403955196,1769691042498,-665.99209402,0.00016438,2]
[403955197,1769691042507,-665.99209402,0.00016438,2]
[403955198,1769691042516,-665.99209402,0.00016438,2]
[403955199,1769691042525,-665.99209402,0.00016438,2]
[403955200,1769691042535,-665.99209402,0.00016438,2]
[403955201,1769691042545,-665.99209402,0.00016438,2]
[403955202,1769691042554,-665.99209402,0.00016438,2]
[403955203,1769691042563,-665.99209402,0.00016438,2]
[403955204,1769691042572,-665.99209402,0.00016438,2]
[403955205,1769691042581,-665.99209402,0.00016438,2]
[403955206,1769691042590,-665.99209402,0.00016438,2]
[403955207,1769691042600,-665.99209402,0.00016438,2]
[403955208,1769691042609,-665.99209402,0.00016438,2]
[403955209,1769691042618,-665.99209402,0.00016438,2]
[403955210,1769691042627,-665.99209402,0.00016438,2]
[403955211,1769691042636,-665.99209402,0.00016438,2]
[403955212,1769691042645,-665.99209402,0.00016438,2]
[403955213,1769691042654,-665.99209402,0.00016438,2]
[403955214,1769691042663,-665.99209402,0.00016438,2]
[403955215,1769691042672,-665.99209402,0.00016438,2]